[Event "FIDE World Cadets GU12 2022"]
[Site "Batumi"]
[Date "2022.09.25"]
[Round "9.5"]
[White "Khafizova, Diana"]
[Black "Kaliakhmet, Elnaz"]
[Result "0-1"]
[ECO "D37"]
[WhiteElo "1411"]
[BlackElo "1864"]
[Annotator "NA RC COMBH"]
[PlyCount "138"]
[EventDate "2022.09.16"]
[EventType "swiss"]
[EventCountry "GEO"]
[SourceTitle "playchess.com"]
[Source "ChessBase"]
[SourceQuality "1"]
[TimeControl "5400+30"]

1. d4 Nf6 2. Bf4 d5 3. Nf3 c5 4. e3 Nc6 5. Be2 e6 6. O-O Bd6 7. dxc5 Bxc5 8. c4 O-O 9. Nc3 h6 10. cxd5 exd5 11. Rc1 Be7 12. Qc2 Be6 13. h3 Rc8 14. Rfd1 Qa5 15. a3 a6 16. Bd3 Qb6 17. Na4 Qa7 18. Nc3 b5 19. Bf5 Qd7 20. Bxe6 Qxe6 21. Qb1 Rfd8 22. Ne2 Ne4 23. Ned4 Nxd4 24. Nxd4 Qf6 25. Nf3 Bc5 26. Be5 Qe6 27. Qd3 Bb6 28. Bf4 Qf6 29. Be5 Qe6 {[%emt 1:39:45]} 30. Bf4 {[%emt 0:57:30]} Rc4 {[%emt 0:00:28]} 31. Nd4 {[%emt 0:08:30]} Bxd4 {[%emt 0:01:08]} 32. exd4 {[%emt 0:00:30]} Rdc8 {[%emt 0:01:42]} 33. Qf1 {[%emt 0:02:30]} Rc2 {[%emt 0:01:13]} 34. f3 {[%emt 0:03:30]} Ng3 {[%emt 0:02:04]} 35. Rxc2 {[%emt 0:04:30]} Nxf1 {[%emt 0:00:30]} 36. Rxc8+ {[%emt 0:00:30]} Qxc8 {[%emt 0:00:00]} 37. Kxf1 {[%emt 0:01:30]} Qf5 {[%emt 0:01:03]} 38. Be3 {[%emt 0:00:30]} Qc2 {[%emt 0:00:30]} 39. Rd2 {[%emt 0:00:30]} Qb3 {[%emt 0:00:19]} 40. Ke2 {[%emt 0:00:30]} f6 {[%emt 0:00:30]} 41. Kf2 {[%emt 0:01:30]} Kf7 {[%emt 0:00:28]} 42. Re2 {[%emt 0:00:30]} Qc4 {[%emt 0:00:00]} 43. Kf1 {[%emt 0:00:00]} a5 {[%emt 0:01:03]} 44. Kf2 {[%emt 0:00:00]} g5 {[%emt 0:00:30]} 45. Rd2 {[%emt 0:00:30]} Qc7 {[%emt 0:01:05]} 46. Rd1 {[%emt 0:00:30]} Qc2+ {[%emt 0:00:30]} 47. Rd2 {[%emt 0:00:30]} Qb3 {[%emt 0:00:00]} 48. f4 {[%emt 0:00:30]} Kg6 {[%emt 0:00:04]} 49. fxg5 {[%emt 0:03:30]} hxg5 {[%emt 0:00:11]} 50. g4 {[%emt 0:00:30]} Qc4 {[%emt 0:00:42]} 51. Re2 {[%emt 0:00:30]} Qd3 {[%emt 0:00:27]} 52. Rd2 {[%emt 0:00:30]} Qb1 {[%emt 0:00:33]} 53. Kg2 {[%emt 0:00:30]} Qe1 {[%emt 0:01:02]} 54. Kf3 {[%emt 0:00:30]} a4 {[%emt 0:00:36]} 55. Re2 {[%emt 0:01:30]} Qf1+ {[%emt 0:00:43]} 56. Bf2 {[%emt 0:00:30]} Qxh3+ {[%emt 0:00:05]} 57. Bg3 {[%emt 0:00:30]} Qf1+ {[%emt 0:00:00]} 58. Bf2 {[%emt 0:00:30]} Qd1 {[%emt 0:00:49]} 59. Be3 {[%emt 0:00:30]} f5 {[%emt 0:00:20]} 60. gxf5+ {[%emt 0:02:30]} Kxf5 {[%emt 0:00:01]} 61. Kf2 {[%emt 0:00:00]} g4 {[%emt 0:00:40]} 62. Bd2 {[%emt 0:01:00]} g3+ {[%emt 0:01:10]} 63. Ke3 {[%emt 0:00:30]} Kg4 {[%emt 0:01:04]} 64. Be1 {[%emt 0:00:30]} Qb3+ {[%emt 0:00:46]} 65. Bc3 {[%emt 0:00:30]} Kh3 {[%emt 0:00:13]} 66. Kf3 {[%emt 0:00:30]} Qd1 {[%emt 0:00:11]} 67. Bd2 {[%emt 0:00:30]} g2 {[%emt 0:00:35]} 68. Be3 {[%emt 0:00:00]} Qf1+ {[%emt 0:00:30]} 69. Rf2 {[%emt 0:00:00]} g1=Q {[%emt 0:00:00]} 0-1

[Event "FIDE World Cadets GU12 2022"]
[Site "Batumi"]
[Date "2022.09.25"]
[Round "9.6"]
[White "Merkulova, Victoria"]
[Black "Imomkuzieva, Nilufarkhon"]
[Result "1/2-1/2"]
[ECO "C92"]
[WhiteElo "1715"]
[BlackElo "1481"]
[Annotator "NA RC COMBH"]
[PlyCount "130"]
[EventDate "2022.09.16"]
[EventType "swiss"]
[EventCountry "GEO"]
[SourceTitle "playchess.com"]
[Source "ChessBase"]
[SourceQuality "1"]
[TimeControl "5400+30"]

1. e4 e5 2. Nf3 Nc6 3. Bb5 a6 4. Ba4 Nf6 5. O-O b5 6. Bb3 Be7 7. Re1 d6 8. c3 O-O 9. h3 Bb7 10. d4 Re8 11. Nbd2 Bf8 12. d5 Nb8 13. Nf1 Nbd7 14. N3h2 Nc5 15. Bc2 c6 16. b4 Ncd7 17. dxc6 Bxc6 18. Bg5 h6 19. Bh4 Qc7 20. Bxf6 Nxf6 21. Ng4 Nxg4 22. hxg4 Rad8 23. Ne3 Bb7 24. Qd3 Rc8 25. a4 Qxc3 26. axb5 axb5 27. Qxb5 Rb8 28. Qc4 Qxc4 29. Nxc4 d5 30. exd5 Bxd5 31. Ne3 Bc6 32. Reb1 Rxb4 33. Rxb4 Bxb4 34. Ra6 Bd7 35. Nf5 Be6 36. Rb6 Bd2 37. Kh2 g6 38. Nd6 Rd8 39. Ne4 Bf4+ 40. g3 Bc1 41. Rb5 Kg7 42. Rxe5 Bxg4 43. Kg2 Bf5 44. Bb3 Ba3 45. f3 Rb8 46. Bc4 Rb2+ 47. Nf2 Bd6 48. Re2 Rb4 49. Bd5 Rb5 50. Bc4 Rb4 51. Bd5 Rd4 52. Ba2 Bc8 53. Ne4 Be5 54. Nc3 Bf6 55. Ne4 Bd8 56. Rd2 Rxd2+ 57. Nxd2 Bb7 58. Ne4 f5 59. Nc5 Bc8 60. Be6 Be7 61. Bxc8 Bxc5 62. g4 h5 63. gxh5 gxh5 64. Kh3 h4 65. Kxh4 Be7+ 1/2-1/2

[Event "FIDE World Cadets GU12 2022"]
[Site "Batumi"]
[Date "2022.09.25"]
[Round "9.7"]
[White "Shreya G Hipparagi"]
[Black "Vlasova, Mariya N"]
[Result "1-0"]
[ECO "B01"]
[WhiteElo "1574"]
[BlackElo "1456"]
[Annotator "NA RC COMBH"]
[PlyCount "112"]
[EventDate "2022.09.16"]
[EventType "swiss"]
[EventCountry "GEO"]
[SourceTitle "playchess.com"]
[Source "ChessBase"]
[SourceQuality "1"]
[TimeControl "5400+30"]

1. e4 d5 2. exd5 Qxd5 3. d4 Nc6 4. Nf3 Bg4 5. Be2 O-O-O 6. c3 e5 7. Be3 exd4 8. cxd4 Bb4+ 9. Nc3 Qa5 10. Qb3 Bxf3 11. Bxf3 Nxd4 12. Bxd4 Rxd4 13. O-O c6 14. Qxf7 Qc7 15. Qe6+ Qd7 16. Qb3 Bxc3 17. Qxc3 Nf6 18. Rad1 Rd8 19. h3 Kb8 20. Qb3 Rxd1 21. Rxd1 Nd5 22. Qd3 g5 23. Bxd5 cxd5 24. Qg3+ Ka8 25. Qxg5 d4 26. a3 d3 27. Rd2 Qc7 28. Qe3 Qc1+ 29. Kh2 Qc7+ 30. Qg3 Qd7 31. f4 h5 32. h4 a6 33. Qe3 Qg4 34. g3 Qf5 35. Qe5 Qf7 36. Qe3 Qf5 37. Kg2 Qd5+ 38. Qf3 Qc4 39. Qxh5 Qc1 40. Qd1 Qc4 41. Qf3 Qc1 42. Qe3 Qc6+ 43. Kh2 Qg6 44. Qf3 Rd4 45. f5 Qd6 46. Kg2 Qc5 47. f6 Qc1 48. Qf2 Qc6+ 49. Kh2 Qd6 50. Kg1 Rc4 51. f7 Rc1+ 52. Kh2 Rc8 53. Qf5 Qf8 54. Rxd3 Rc2+ 55. Kh3 Ka7 56. Re3 Rxb2 1-0

[Event "FIDE World Cadets GU12 2022"]
[Site "Batumi"]
[Date "2022.09.25"]
[Round "9.8"]
[White "Sezdbekova, Aizhan"]
[Black "Huseynli, Ayan"]
[Result "1/2-1/2"]
[ECO "B01"]
[WhiteElo "1447"]
[BlackElo "1572"]
[Annotator "NA RC COMBH"]
[PlyCount "99"]
[EventDate "2022.09.16"]
[EventType "swiss"]
[EventCountry "GEO"]
[SourceTitle "playchess.com"]
[Source "ChessBase"]
[SourceQuality "1"]
[TimeControl "5400+30"]

1. e4 d5 2. exd5 Qxd5 3. Nc3 Qa5 4. d4 Nf6 5. Nf3 c6 6. Bd3 Bg4 7. h3 Bh5 8. O-O e6 9. Bf4 Nbd7 10. a3 Nd5 11. Nxd5 cxd5 12. c3 Qb6 13. Rb1 Bd6 14. Bxd6 Qxd6 15. Re1 O-O 16. Bc2 Nb6 17. Qd3 Bg6 18. Qe2 Bxc2 19. Qxc2 Nc4 20. Ne5 Rfc8 21. Nxc4 Rxc4 22. Qb3 Qc6 23. Re3 a5 24. Rg3 Kf8 25. Rd1 Qa4 26. Qxa4 Rxa4 27. Kf1 b5 28. Ke2 Rc8 29. Kd2 {[%emt 1:40:53]} b4 {[%emt 0:54:00]} 30. cxb4 {[%emt 0:00:30]} axb4 {[%emt 0:00:30]} 31. Rd3 {[%emt 0:00:30]} bxa3 {[%emt 0:06:30]} 32. bxa3 {[%emt 0:00:07]} Ke7 {[%emt 0:04:30]} 33. Rb1 {[%emt 0:00:51]} Rc7 {[%emt 0:02:30]} 34. g3 {[%emt 0:01:18]} Rca7 {[%emt 0:02:30]} 35. Rbb3 {[%emt 0:00:41]} f5 {[%emt 0:05:30]} 36. Ke3 {[%emt 0:00:30]} Kf6 {[%emt 0:00:30]} 37. f4 {[%emt 0:00:43]} h6 {[%emt 0:02:30]} 38. h4 {[%emt 0:01:19]} g5 {[%emt 0:00:30]} 39. h5 {[%emt 0:02:25]} gxf4+ {[%emt 0:00:30]} 40. gxf4 {[%emt 0:00:01]} Rg7 {[%emt 0:00:30]} 41. Rb4 {[%emt 0:00:35]} Rg3+ {[%emt 0:03:30]} 42. Kf2 {[%emt 0:00:16]} Rxd3 {[%emt 0:02:30]} 43. Rxa4 {[%emt 0:00:04]} Rh3 {[%emt 0:00:30]} 44. Ra8 {[%emt 0:00:30]} Rxh5 {[%emt 0:00:30]} 45. a4 {[%emt 0:00:00]} Rh3 {[%emt 0:03:30]} 46. a5 {[%emt 0:00:13]} Ra3 {[%emt 0:00:30]} 47. Kg2 {[%emt 0:01:15]} h5 {[%emt 0:01:30]} 48. a6 {[%emt 0:00:10]} Kg7 {[%emt 0:01:30]} 49. a7 {[%emt 0:00:41]} Kh7 {[%emt 0:00:30]} 50. Kh2 {[%emt 0:00:06]} 1/2-1/2

[Event "FIDE World Cadets GU12 2022"]
[Site "Batumi"]
[Date "2022.09.25"]
[Round "9.9"]
[White "Aydogan, Arya"]
[Black "Urangoo, Gurvanbaatar"]
[Result "1/2-1/2"]
[ECO "B51"]
[WhiteElo "1489"]
[BlackElo "1391"]
[Annotator "NA RC COMBH"]
[PlyCount "81"]
[EventDate "2022.09.16"]
[EventType "swiss"]
[EventCountry "GEO"]
[SourceTitle "playchess.com"]
[Source "ChessBase"]
[SourceQuality "1"]
[TimeControl "5400+30"]

1. e4 c5 2. Nf3 d6 3. Bb5+ Nd7 4. d4 cxd4 5. Qxd4 a6 6. Bxd7+ Bxd7 7. c4 Rc8 8. Nc3 e5 9. Qd3 Qc7 10. b3 b5 11. Nd5 Qc5 12. Nd2 Ne7 13. O-O Nxd5 14. exd5 Be7 15. Bb2 O-O 16. Rac1 Qb6 17. Kh1 Bg5 18. Rc2 f5 19. f3 Rc7 20. Ba3 Rfc8 21. Rfc1 Bf4 22. c5 dxc5 23. d6 Rc6 24. Qd5+ Kh8 25. Bxc5 Qd8 26. b4 Qh4 27. h3 Qh5 28. Rd1 g5 29. Nf1 g4 30. Re2 gxh3 31. g3 Be6 32. Qxe6 Qxf3+ 33. Kg1 Qxe2 34. Qf6+ Kg8 35. Qe6+ Kg7 36. Qe7+ Kh8 37. Qf6+ Kg8 38. Qe6+ Kh8 39. Qf6+ Kg8 40. Qe6+ Kh8 41. Qf6+ 1/2-1/2

[Event "FIDE World Cadets GU12 2022"]
[Site "Batumi"]
[Date "2022.09.25"]
[Round "9.10"]
[White "Zarkym, Ailin"]
[Black "Haasova, Timea"]
[Result "0-1"]
[ECO "B45"]
[WhiteElo "1376"]
[BlackElo "1707"]
[Annotator "NA RC COMBH"]
[PlyCount "85"]
[EventDate "2022.09.16"]
[EventType "swiss"]
[EventCountry "GEO"]
[SourceTitle "playchess.com"]
[Source "ChessBase"]
[SourceQuality "1"]
[TimeControl "5400+30"]

1. e4 c5 2. Nf3 e6 3. d4 cxd4 4. Nxd4 Nf6 5. Nc3 Nc6 6. Ndb5 Bb4 7. a3 Bxc3+ 8. Nxc3 d5 9. exd5 exd5 10. Bg5 d4 11. Qe2+ Be6 12. O-O-O h6 13. Bh4 Qc7 14. Nb5 Qf4+ 15. Kb1 Qxh4 16. Nc7+ Kd7 17. Nxa8 Rxa8 18. Qb5 Rb8 19. Qa4 a6 20. Be2 Qxf2 21. Bf3 Nd5 22. Rhf1 Qe3 23. Rfe1 Qg5 24. Re2 Kd8 25. h4 Qf6 {[%emt 1:13:00]} 26. Bxd5 {[%emt 1:22:30]} Bxd5 {[%emt 0:00:30]} 27. Rde1 {[%emt 0:00:30]} Be6 {[%emt 0:00:30]} 28. Re4 {[%emt 0:00:30]} Ra8 {[%emt 0:05:30]} 29. Rxe6 {[%emt 0:04:47]} fxe6 {[%emt 0:00:30]} 30. Qb3 {[%emt 0:00:00]} Kc7 {[%emt 0:06:59]} 31. Rxe6 {[%emt 0:00:00]} Qxh4 {[%emt 0:02:52]} 32. Rg6 {[%emt 0:00:12]} Qe1+ {[%emt 0:04:49]} 33. Ka2 {[%emt 0:00:30]} Qe7 {[%emt 0:00:30]} 34. Qg3+ {[%emt 0:00:00]} Kb6 {[%emt 0:01:19]} 35. Rxg7 {[%emt 0:00:29]} Qe6+ {[%emt 0:00:26]} 36. Kb1 {[%emt 0:00:23]} Qe5 {[%emt 0:03:10]} 37. Qb3+ {[%emt 0:01:10]} Qb5 {[%emt 0:00:30]} 38. Qf7 {[%emt 0:00:00]} Ka7 {[%emt 0:00:28]} 39. Qd7 {[%emt 0:00:10]} Rf8 {[%emt 0:00:40]} 40. b3 {[%emt 0:00:54]} Rf1+ {[%emt 0:01:14]} 41. Kb2 {[%emt 0:00:40]} d3 {[%emt 0:00:37]} 42. a4 {[%emt 0:02:32]} Qe5+ {[%emt 0:00:42]} 43. c3 {[%emt 0:00:16]} 0-1

[Event "FIDE World Cadets GU12 2022"]
[Site "Batumi"]
[Date "2022.09.25"]
[Round "9.11"]
[White "Maklakova, Naomi"]
[Black "Sordia, Marta"]
[Result "1-0"]
[ECO "D04"]
[WhiteElo "1635"]
[BlackElo "1363"]
[Annotator "NA RC COMBH"]
[PlyCount "69"]
[EventDate "2022.09.16"]
[EventType "swiss"]
[EventCountry "GEO"]
[SourceTitle "playchess.com"]
[Source "ChessBase"]
[SourceQuality "1"]
[TimeControl "5400+30"]

1. d4 d5 2. Nf3 c5 3. e3 Nf6 4. b3 Nc6 5. Bb2 Bg4 6. Be2 Bxf3 7. Bxf3 cxd4 8. exd4 e6 9. O-O Bd6 10. Nd2 O-O 11. c4 Qd7 12. Rc1 Rac8 13. Re1 Bb8 14. a3 Rfd8 15. cxd5 Nxd5 16. Nc4 Bf4 17. Rc2 h6 18. g3 Bg5 19. h4 Bf6 20. Rd2 Qc7 21. Bxd5 {[%emt 1:24:12]} exd5 {[%emt 1:11:00]} 22. Ne5 {[%emt 0:00:30]} Re8 {[%emt 0:00:30]} 23. Rde2 {[%emt 0:00:30]} Qb6 {[%emt 0:00:30]} 24. Nd7 {[%emt 0:03:41]} Rxe2 {[%emt 0:06:30]} 25. Nxb6 {[%emt 0:00:30]} Rxe1+ {[%emt 0:00:30]} 26. Qxe1 {[%emt 0:00:30]} axb6 {[%emt 0:00:30]} 27. Qe3 {[%emt 0:00:00]} Kf8 {[%emt 0:00:30]} 28. Qd3 {[%emt 0:01:41]} Re8 {[%emt 0:01:30]} 29. Qb5 {[%emt 0:00:40]} Nxd4 {[%emt 0:01:30]} 30. Bxd4 {[%emt 0:00:30]} Bxd4 {[%emt 0:00:30]} 31. Qxd5 {[%emt 0:00:53]} Bc5 {[%emt 0:01:30]} 32. b4 {[%emt 0:00:06]} Be7 {[%emt 0:01:30]} 33. Qxb7 {[%emt 0:00:30]} Bd8 {[%emt 0:00:30]} 34. Qd7 {[%emt 0:00:23]} Bf6 {[%emt 0:00:30]} 35. Qd6+ {[%emt 0:00:00]} 1-0

[Event "FIDE World Cadets GU12 2022"]
[Site "Batumi"]
[Date "2022.09.25"]
[Round "9.12"]
[White "Saparya Ghosh"]
[Black "Assylkhan, Asiya"]
[Result "1/2-1/2"]
[ECO "D35"]
[WhiteElo "1563"]
[BlackElo "1424"]
[Annotator "NA RC COMBH"]
[PlyCount "78"]
[EventDate "2022.09.16"]
[EventType "swiss"]
[EventCountry "GEO"]
[SourceTitle "playchess.com"]
[Source "ChessBase"]
[SourceQuality "1"]
[TimeControl "5400+30"]

1. d4 Nf6 2. c4 e6 3. Nf3 d5 4. cxd5 exd5 5. Nc3 c6 6. Bg5 Be7 7. e3 Bf5 8. Bd3 Bxd3 9. Qxd3 h6 10. Bh4 Nbd7 11. O-O Nh5 12. Bxe7 Qxe7 13. e4 dxe4 14. Nxe4 O-O 15. Rfe1 Qb4 16. a3 Qb6 17. Ne5 Nhf6 18. Nd6 Rad8 19. Rad1 Qc7 20. Nf5 Nxe5 21. Qg3 Nf3+ 22. Qxf3 Kh7 23. Re7 Rd7 {[%emt 1:06:00]} 24. Rde1 {[%emt 1:31:09]} Rxe7 {[%emt 0:04:30]} 25. Rxe7 {[%emt 0:00:30]} Re8 {[%emt 0:00:00]} 26. Rxe8 {[%emt 0:00:55]} Nxe8 {[%emt 0:00:00]} 27. Qg4 {[%emt 0:01:55]} c5 {[%emt 0:12:30]} 28. h3 {[%emt 0:04:07]} cxd4 {[%emt 0:01:30]} 29. Qxd4 {[%emt 0:00:20]} Nf6 {[%emt 0:01:31]} 30. Nd6 {[%emt 0:01:25]} b6 {[%emt 0:01:09]} 31. Nb5 {[%emt 0:01:27]} Qe7 {[%emt 0:00:52]} 32. Qd3+ {[%emt 0:01:15]} Kg8 {[%emt 0:00:16]} 33. Qd4 {[%emt 0:01:21]} Kh7 {[%emt 0:03:59]} 34. Qd3+ {[%emt 0:01:33]} Kg8 {[%emt 0:00:34]} 35. Qe3 {[%emt 0:00:19]} Qxe3 {[%emt 0:00:40]} 36. fxe3 {[%emt 0:00:30]} a5 {[%emt 0:00:22]} 37. Nd6 {[%emt 0:00:41]} Kf8 {[%emt 0:01:15]} 38. Nc4 {[%emt 0:00:30]} Nd7 {[%emt 0:00:02]} 39. Kf2 {[%emt 0:00:58]} Ke7 1/2-1/2

[Event "FIDE World Cadets GU12 2022"]
[Site "Batumi"]
[Date "2022.09.25"]
[Round "9.13"]
[White "Kholyavko, Mariya"]
[Black "Derlich, Sarah Sima"]
[Result "1/2-1/2"]
[ECO "C26"]
[WhiteElo "1421"]
[BlackElo "1490"]
[Annotator "NA RC COMBH"]
[PlyCount "76"]
[EventDate "2022.09.16"]
[EventType "swiss"]
[EventCountry "GEO"]
[SourceTitle "playchess.com"]
[Source "ChessBase"]
[SourceQuality "1"]
[TimeControl "5400+30"]

1. e4 e5 2. Nc3 Nc6 3. g3 Nf6 4. Bg2 Bc5 5. Nge2 O-O 6. O-O a6 7. d3 d6 8. h3 Be6 9. Nd5 Bxd5 10. exd5 Ne7 11. Bg5 Nf5 12. Be4 h6 13. Bxf6 Qxf6 14. g4 Nh4 15. Ng3 Qf4 16. Nh5 Qg5 17. Qc1 Qxc1 18. Raxc1 f5 19. gxf5 Nxf5 20. Kh2 g6 21. Ng3 Nxg3 22. fxg3 Kg7 23. Kg2 a5 24. a3 b5 25. c3 b4 26. cxb4 axb4 27. axb4 Rxf1 28. Kxf1 Rf8+ 29. Ke2 Bb6 30. Kd2 Rf2+ 31. Kc3 Rh2 32. Rh1 Bd4+ 33. Kc4 Rxh1 34. Bxh1 Bxb2 35. Kb5 Bd4 36. Kc6 Bb6 37. Bf3 Kf6 38. Bg4 h5 1/2-1/2

[Event "FIDE World Cadets GU12 2022"]
[Site "Batumi"]
[Date "2022.09.25"]
[Round "9.14"]
[White "Alfano, Emilie"]
[Black "Semenova, Vasilisa"]
[Result "0-1"]
[ECO "B11"]
[WhiteElo "1712"]
[BlackElo "1332"]
[Annotator "NA RC COMBH"]
[PlyCount "92"]
[EventDate "2022.09.16"]
[EventType "swiss"]
[EventCountry "GEO"]
[SourceTitle "playchess.com"]
[Source "ChessBase"]
[SourceQuality "1"]
[TimeControl "5400+30"]

1. e4 c6 2. Nc3 d5 3. Nf3 Bg4 4. h3 Bh5 5. exd5 cxd5 6. g4 Bg6 7. Ne5 Nc6 8. d4 e6 9. h4 f6 10. Nxg6 hxg6 11. Qd3 Kf7 12. h5 gxh5 13. gxh5 Nge7 14. Bh3 Qd7 15. Ne2 Nf5 16. Bxf5 exf5 17. Qg3 Re8 18. c3 Ke7 19. Be3 Kd8 20. O-O-O Bd6 21. Qg2 Bc7 22. Rde1 Kc8 23. Qf3 Na5 24. Bf4 Bxf4+ 25. Nxf4 Re4 26. Ng2 Rhe8 27. Ne3 Nc4 28. Nc2 Kb8 29. Qg3+ f4 30. Qf3 {[%emt 1:35:47]} Qf5 {[%emt 1:01:30]} 31. Rhg1 {[%emt 0:05:54]} R8e7 {[%emt 0:06:30]} 32. Rh1 {[%emt 0:03:54]} Nd6 {[%emt 0:01:30]} 33. b3 {[%emt 0:00:34]} Nb5 {[%emt 0:03:30]} 34. a4 {[%emt 0:00:42]} Nd6 {[%emt 0:00:30]} 35. Kb2 {[%emt 0:00:07]} Rxe1 {[%emt 0:06:30]} 36. Rxe1 {[%emt 0:00:12]} Ne4 {[%emt 0:00:30]} 37. Qe2 {[%emt 0:01:04]} f3 {[%emt 0:01:30]} 38. Ne3 {[%emt 0:00:12]} Qc8 {[%emt 0:01:30]} 39. Qc2 {[%emt 0:00:16]} Qd8 {[%emt 0:05:30]} 40. Nf5 {[%emt 0:01:07]} Rc7 {[%emt 0:01:30]} 41. Re3 {[%emt 0:00:02]} Qh8 {[%emt 0:07:31]} 42. Rxf3 {[%emt 0:01:06]} Qxh5 {[%emt 0:00:40]} 43. Qe2 {[%emt 0:00:32]} Rxc3 {[%emt 0:01:00]} 44. Ne3 {[%emt 0:00:30]} Qh1 {[%emt 0:00:30]} 45. Ka3 {[%emt 0:00:30]} Qa1+ {[%emt 0:01:30]} 46. Qa2 {[%emt 0:00:30]} Rxb3+ {[%emt 0:00:00]} 0-1

[Event "FIDE World Cadets GU12 2022"]
[Site "Batumi"]
[Date "2022.09.25"]
[Round "9.16"]
[White "Gan, Emily Cathay"]
[Black "Celik, Fatma Nisa"]
[Result "1-0"]
[ECO "A29"]
[WhiteElo "1550"]
[BlackElo "1291"]
[Annotator "NA RC COMBH"]
[PlyCount "133"]
[EventDate "2022.09.16"]
[EventType "swiss"]
[EventCountry "GEO"]
[SourceTitle "playchess.com"]
[Source "ChessBase"]
[SourceQuality "1"]
[TimeControl "5400+30"]

1. c4 e5 2. Nc3 Nf6 3. d3 d5 4. cxd5 Nxd5 5. Nf3 Nc6 6. g3 Be7 7. Bg2 Nb6 8. O-O O-O 9. Nd2 Be6 10. Nb3 f5 11. f4 Bf6 12. Kh1 Qe7 13. Be3 Nd7 14. Nd5 Qd6 15. Nxf6+ Rxf6 16. fxe5 Ndxe5 17. Bc5 Qd7 18. d4 Bxb3 19. Qxb3+ Nf7 20. Qxb7 Re8 21. d5 Ncd8 22. Qxa7 {[%emt 1:13:30]} h6 {[%emt 1:32:27]} 23. Bd4 {[%emt 0:00:30]} Rg6 {[%emt 0:00:30]} 24. Rac1 {[%emt 0:00:30]} Qb5 {[%emt 0:00:30]} 25. Qc5 {[%emt 0:00:30]} Qa6 {[%emt 0:02:01]} 26. e3 {[%emt 0:01:30]} Qxa2 {[%emt 0:02:39]} 27. Rxf5 {[%emt 0:00:30]} Nd6 {[%emt 0:00:51]} 28. Rf4 {[%emt 0:04:30]} N8f7 {[%emt 0:00:52]} 29. e4 {[%emt 0:03:30]} Qb3 {[%emt 0:01:11]} 30. Qc3 {[%emt 0:01:08]} Qa4 {[%emt 0:01:24]} 31. b3 {[%emt 0:01:47]} Qa2 {[%emt 0:00:39]} 32. Ra1 {[%emt 0:00:11]} Qe2 {[%emt 0:00:40]} 33. Re1 {[%emt 0:01:57]} Qa2 {[%emt 0:00:57]} 34. Qd3 {[%emt 0:00:46]} Ne5 {[%emt 0:01:01]} 35. Bxe5 {[%emt 0:00:30]} Rxe5 {[%emt 0:00:00]} 36. h3 {[%emt 0:01:42]} Reg5 {[%emt 0:00:36]} 37. Rf3 {[%emt 0:01:43]} Re5 {[%emt 0:00:18]} 38. Rfe3 {[%emt 0:00:50]} Qa7 {[%emt 0:00:46]} 39. Kh2 {[%emt 0:01:54]} Qc5 {[%emt 0:00:35]} 40. R1e2 {[%emt 0:01:22]} Qb6 {[%emt 0:00:31]} 41. Rc2 {[%emt 0:00:31]} Nb5 {[%emt 0:00:58]} 42. Rc4 {[%emt 0:00:44]} Na3 {[%emt 0:00:41]} 43. Ra4 {[%emt 0:00:57]} Nb5 {[%emt 0:00:30]} 44. Rb4 {[%emt 0:00:30]} c6 {[%emt 0:00:30]} 45. Bf1 {[%emt 0:01:07]} Qa5 {[%emt 0:00:39]} 46. Qd2 {[%emt 0:01:54]} Na3 {[%emt 0:00:34]} 47. Rb8+ {[%emt 0:01:11]} Kh7 {[%emt 0:00:30]} 48. Qxa5 {[%emt 0:00:01]} Nc2 {[%emt 0:00:00]} 49. Rc3 {[%emt 0:01:06]} Nd4 {[%emt 0:00:17]} 50. Bg2 {[%emt 0:01:07]} cxd5 {[%emt 0:00:21]} 51. exd5 {[%emt 0:00:11]} Nc6 {[%emt 0:01:00]} 52. Rxc6 {[%emt 0:00:30]} Rxc6 {[%emt 0:00:30]} 53. dxc6 {[%emt 0:00:30]} Rxa5 {[%emt 0:00:00]} 54. c7 {[%emt 0:00:04]} Rc5 {[%emt 0:00:00]} 55. c8=Q {[%emt 0:00:30]} Rxc8 {[%emt 0:00:00]} 56. Rxc8 {[%emt 0:00:00]} g5 {[%emt 0:00:00]} 57. b4 {[%emt 0:00:04]} g4 {[%emt 0:00:00]} 58. b5 {[%emt 0:00:32]} h5 {[%emt 0:00:06]} 59. b6 {[%emt 0:00:30]} h4 {[%emt 0:00:00]} 60. b7 {[%emt 0:00:04]} hxg3+ {[%emt 0:00:11]} 61. Kxg3 {[%emt 0:00:30]} gxh3 {[%emt 0:00:30]} 62. Bxh3 {[%emt 0:00:30]} Kg7 {[%emt 0:00:00]} 63. b8=Q {[%emt 0:00:00]} Kg6 {[%emt 0:00:00]} 64. Rc5 {[%emt 0:00:00]} Kf7 {[%emt 0:00:16]} 65. Rc6 {[%emt 0:00:00]} Ke7 {[%emt 0:00:00]} 66. Qb7+ {[%emt 0:00:00]} Kd8 {[%emt 0:00:18]} 67. Qd7# {[%emt 0:00:00]} 1-0

[Event "FIDE World Cadets GU12 2022"]
[Site "Batumi"]
[Date "2022.09.25"]
[Round "9.17"]
[White "Enkhuyanga Gantsolmon"]
[Black "Kiss, Inez"]
[Result "1-0"]
[ECO "E01"]
[WhiteElo "1301"]
[BlackElo "1544"]
[Annotator "NA RC COMBH"]
[PlyCount "111"]
[EventDate "2022.09.16"]
[EventType "swiss"]
[EventCountry "GEO"]
[SourceTitle "playchess.com"]
[Source "ChessBase"]
[SourceQuality "1"]
[TimeControl "5400+30"]

1. Nf3 d5 2. c4 e6 3. g3 c6 4. Bg2 Nf6 5. O-O Bd6 6. b3 O-O 7. Bb2 Nbd7 8. d4 Re8 9. Nc3 h6 10. Qc2 Qc7 11. c5 Be7 12. b4 b6 13. Rfe1 bxc5 14. bxc5 Rb8 15. Bc1 Qa5 16. Bf4 Ra8 17. Reb1 Nh5 18. Bd2 Qc7 19. Qa4 e5 20. Nxe5 Nxe5 21. dxe5 Bxc5 22. Bxd5 Bd7 23. Bxf7+ Kxf7 24. Qc4+ Re6 25. Qxc5 Rxe5 26. Qb4 c5 27. Qb7 {[%emt 1:00:00]} Qd8 {[%emt 1:35:52]} 28. Be3 {[%emt 0:00:30]} Kg8 {[%emt 0:00:30]} 29. Rd1 {[%emt 0:01:30]} Nf6 {[%emt 0:03:25]} 30. Bf4 {[%emt 0:06:30]} Re8 {[%emt 0:00:51]} 31. Rab1 {[%emt 0:08:30]} Qe7 {[%emt 0:01:29]} 32. Bd6 {[%emt 0:03:30]} Qe6 {[%emt 0:01:14]} 33. Bxc5 {[%emt 0:00:30]} Bc6 {[%emt 0:01:29]} 34. Qb3 {[%emt 0:01:30]} Qxb3 {[%emt 0:00:48]} 35. Rxb3 {[%emt 0:00:00]} a6 {[%emt 0:00:47]} 36. f3 {[%emt 0:02:00]} Rac8 {[%emt 0:00:33]} 37. Bd4 {[%emt 0:01:30]} Nd5 {[%emt 0:00:30]} 38. Ne4 {[%emt 0:01:30]} Ba4 {[%emt 0:00:50]} 39. Nd6 {[%emt 0:00:30]} Bxb3 {[%emt 0:00:24]} 40. axb3 {[%emt 0:00:30]} Rcd8 {[%emt 0:00:30]} 41. Nxe8 {[%emt 0:00:30]} Rxe8 {[%emt 0:00:26]} 42. e4 {[%emt 0:00:30]} Nf6 {[%emt 0:00:00]} 43. Bxf6 {[%emt 0:00:00]} gxf6 {[%emt 0:00:21]} 44. Rd6 {[%emt 0:00:00]} Rb8 {[%emt 0:00:21]} 45. Rxa6 {[%emt 0:00:30]} Rxb3 {[%emt 0:00:36]} 46. Rxf6 {[%emt 0:00:30]} Kg7 {[%emt 0:00:30]} 47. Rf5 {[%emt 0:00:30]} Rb1+ {[%emt 0:00:00]} 48. Kg2 {[%emt 0:00:00]} Rb2+ {[%emt 0:00:00]} 49. Kh3 {[%emt 0:00:00]} Kg6 {[%emt 0:00:00]} 50. g4 {[%emt 0:00:00]} Rf2 {[%emt 0:00:23]} 51. Kg3 {[%emt 0:00:00]} Re2 {[%emt 0:00:00]} 52. h4 {[%emt 0:00:00]} Ra2 {[%emt 0:00:27]} 53. g5 {[%emt 0:00:00]} hxg5 {[%emt 0:01:13]} 54. hxg5 {[%emt 0:00:00]} Ra6 {[%emt 0:00:41]} 55. Kg4 {[%emt 0:00:00]} Re6 {[%emt 0:00:00]} 56. Rf6+ {[%emt 0:00:30]} 1-0

[Event "FIDE World Cadets GU12 2022"]
[Site "Batumi"]
[Date "2022.09.25"]
[Round "9.18"]
[White "Silva, Juliana Figueira The"]
[Black "Krkyasharyan, Sona"]
[Result "1-0"]
[ECO "A07"]
[WhiteElo "1328"]
[BlackElo "1484"]
[Annotator "NA RC COMBH"]
[PlyCount "57"]
[EventDate "2022.09.16"]
[EventType "swiss"]
[EventCountry "GEO"]
[SourceTitle "playchess.com"]
[Source "ChessBase"]
[SourceQuality "1"]
[TimeControl "5400+30"]

1. Nf3 d5 2. g3 Nf6 3. Bg2 c6 4. d3 Bg4 5. O-O e6 6. Nbd2 Nbd7 7. e4 dxe4 8. dxe4 Bc5 9. Qe1 O-O 10. Kh1 Qe7 11. Ng1 e5 12. f4 exf4 13. gxf4 Ne8 14. Qg3 f5 15. Re1 Qf7 16. e5 Nc7 17. Ngf3 Ne6 18. Nf1 Rad8 19. Be3 Be7 20. Nd4 Ndc5 21. Nxe6 Qxe6 22. Bf2 Rd7 23. Ne3 Bh5 24. Rg1 Bg6 25. b4 Na4 26. h4 Bxb4 27. Bh3 Nc3 28. Qf3 Ne4 29. Qxe4 1-0